bitfinex-derivatives/quotes_BNBF0:USTF0_20250406
["timestamp","ask_amount","ask_price","bid_price","bid_amount"]
[1743963319166,3.71125731,562.0,560.31,0.29762331]
[1743963319369,2.42404143,561.99,560.32,0.29762331]
[1743963319567,0.3273587,561.98,560.31,0.29762331]
[1743963319770,0.3273587,561.98,560.33,0.29762331]
[1743963319969,0.3273587,561.98,560.34,0.29762331]
[1743963320170,1.28721588,561.97,560.31,0.29762331]
[1743963320472,0.3273587,561.96,560.31,0.29762331]
[1743963320674,1.28721588,561.95,560.31,0.29762331]
[1743963320972,0.3273587,561.94,560.31,0.29762331]
[1743963321172,1.28721588,561.93,560.31,0.29762331]
[1743963321375,0.3273587,561.92,560.31,0.29762331]
[1743963321674,0.465,561.91,560.31,0.29762331]
[1743963321872,0.3273587,561.9,560.31,0.29762331]
[1743963322274,0.93175042,561.9,560.31,0.29762331]
[1743963322469,2.2189663,561.9,560.31,0.29762331]
[1743963322672,1.81964971,561.89,560.31,0.29762331]
[1743963322874,0.3273587,561.88,560.31,0.29762331]
[1743963323073,1.61457458,561.88,560.31,0.29762331]
[1743963323268,0.3273587,561.87,560.31,0.29762331]
[1743963323473,2.42404143,561.87,560.31,0.29762331]
[1743963323667,2.42404143,561.87,560.3,0.35695163]
[1743963323668,3.38389861,561.87,560.3,0.35695163]
[1743963323974,0.465,561.91,560.3,0.35695163]
[1743963323975,3.71142865,561.86,560.31,0.29779165]
[1743963324278,1.81982105,561.85,560.31,0.29779165]
[1743963324469,1.28721588,561.84,560.31,0.29779165]
[1743963324668,0.32745357,561.83,560.32,0.29779165]
[1743963324871,0.63745513,561.83,560.33,0.29779165]
[1743963325072,0.32745357,561.82,560.34,0.29779165]
[1743963325368,0.88000156,561.83,560.31,0.29779165]
[1743963325572,0.88000156,561.83,560.32,0.29779165]
[1743963325775,0.32749329,561.82,560.31,0.29779165]
[1743963326678,0.59942897,561.82,560.31,0.29779165]
[1743963326973,2.08628993,561.82,560.31,0.29779165]
[1743963327176,0.32754241,561.81,560.31,0.29779165]
[1743963327471,1.59323058,561.81,560.31,0.29779165]
[1743963327674,0.32754241,561.8,560.31,0.29779165]
[1743963327877,2.41383234,561.8,560.31,0.29779165]
[1743963328076,0.32754241,561.79,560.31,0.29779165]
[1743963328472,1.59323058,561.79,560.31,0.29779165]
[1743963328674,0.116,561.78,560.3,0.35695163]
[1743963328875,3.79557657,561.78,560.31,0.29785915]
[1743963329218,0.92702744,561.77,560.31,0.29785915]
[1743963329271,2.4138884,561.77,560.31,0.29785915]
[1743963329470,0.32759847,561.76,560.31,0.29785915]
[1743963329775,1.59328664,561.76,560.31,0.29785915]
[1743963329975,0.32759847,561.75,560.31,0.29785915]
[1743963330169,2.41123323,561.75,560.31,0.29785915]
[1743963330374,1.59328664,561.74,560.31,0.29785915]
[1743963330673,0.32759847,561.73,560.31,0.29785915]
[1743963330977,2.41123323,561.73,560.31,0.29785915]
[1743963331275,1.26568817,561.72,560.3,0.35695163]
[1743963331476,2.75000914,561.72,560.31,0.29783924]
[1743963331676,0.116,561.78,560.31,0.29783924]
[1743963332073,0.116,561.78,560.3,0.35695163]
[1743963332276,0.116,561.78,560.31,0.29780863]
[1743963332673,0.32754307,561.77,560.31,0.29780863]
[1743963333074,0.32754307,561.77,560.32,0.29780863]
[1743963333279,0.32754307,561.77,560.3,0.35695163]
[1743963333280,0.32754307,561.77,560.33,0.29780863]
[1743963333481,0.32754307,561.77,560.34,0.29780863]
[1743963333781,0.32754307,561.77,560.35,0.29780863]
[1743963333980,0.32754307,561.77,560.3,0.35695163]
[1743963333981,0.32754307,561.77,560.36,0.29780863]
[1743963334178,0.32754307,561.77,560.37,0.29780863]
[1743963334373,0.32754307,561.77,560.38,0.29780863]
[1743963334575,0.32754307,561.77,560.39,0.29780863]
[1743963334779,0.32754307,561.77,560.4,0.29780863]
[1743963334980,0.32754307,561.77,560.41,0.29780863]
[1743963335179,0.31007061,561.76,560.42,0.29780863]
[1743963335380,0.32754307,561.75,560.43,0.29780863]
[1743963335581,0.32754307,561.75,560.44,0.29780863]
[1743963335780,0.3560366,561.74,560.45,0.29780863]
[1743963335980,0.3560366,561.74,560.3,0.35695163]
[1743963335981,0.32754307,561.73,560.31,0.29780863]
[1743963336177,0.32754307,561.73,560.32,0.29780863]
[1743963336377,0.32754307,561.73,560.31,0.29780863]
[1743963336580,0.35604927,561.72,560.32,0.65474752]
[1743963336781,0.35604927,561.72,560.33,0.65474115]
[1743963337082,0.35604927,561.72,560.34,0.65473478]
[1743963337282,0.35604927,561.72,560.35,0.29780863]
[1743963337283,0.3275295,561.71,560.35,0.29780863]
[1743963337484,0.35604927,561.72,560.35,0.29780863]
[1743963337778,0.32755084,561.71,560.36,0.35691341]
[1743963337982,0.35606195,561.7,560.37,0.29780863]
[1743963338181,0.32755084,561.69,560.37,0.29780863]
[1743963338782,0.35606195,561.7,560.36,0.35691341]
[1743963339078,0.32754747,561.69,560.37,0.29780906]
[1743963339680,0.32754747,561.69,560.38,0.35690067]
[1743963339880,0.32754747,561.69,560.39,0.29780906]
[1743963340282,0.92673152,561.69,560.39,0.29780906]
[1743963340484,2.08530507,561.69,560.38,0.35690067]
[1743963340679,0.32761398,561.68,560.4,0.29787458]
[1743963340882,1.59128837,561.68,560.39,0.29787458]
[1743963341085,3.67659344,561.68,560.41,0.29787458]
[1743963341283,2.41291905,561.67,560.42,0.29787458]
[1743963341484,1.26367439,561.66,560.38,0.35690067]
[1743963341686,3.67659344,561.66,560.38,0.35690067]
[1743963341984,3.67659344,561.65,560.38,0.35690067]
[1743963342286,2.08530507,561.64,560.38,0.35690067]
[1743963342678,0.32778394,561.63,560.38,0.35690067]
[1743963342883,1.26367439,561.62,560.38,0.35690067]
[1743963343081,0.32778394,561.61,560.38,0.35690067]
[1743963343480,2.41308901,561.61,560.38,0.35690067]
[1743963343682,2.16412102,561.6,560.38,0.35690067]
[1743963343884,3.6768839,561.59,559.57,1.32189964]
[1743963344086,2.41320951,561.58,559.58,0.29821458]
[1743963344387,2.41320951,561.57,559.58,0.29821458]
[1743963344586,3.6768839,561.56,559.58,0.29821458]
[1743963344783,2.41320951,561.55,559.58,0.29821458]
[1743963344988,3.6768839,561.54,559.58,0.29821458]
[1743963345188,2.08530507,561.53,559.36,0.31046619]
[1743963345388,2.41334684,561.52,559.37,0.65584196]
[1743963345587,3.34897946,561.51,559.37,0.65584196]
[1743963345786,2.41334684,561.5,559.38,0.29829687]
[1743963345987,1.81416279,561.49,559.38,0.29829687]
[1743963346289,3.07783718,561.48,559.38,0.29829687]
[1743963346489,3.67702123,561.47,559.38,0.29829687]
[1743963346690,2.41334684,561.46,559.38,0.29829687]
[1743963346890,0.32804177,561.45,559.38,0.29829687]
[1743963347090,1.26367439,561.44,559.37,0.35754509]
[1743963347290,0.32804527,561.43,559.38,0.29829961]
[1743963347486,3.67702473,561.43,559.38,0.29829961]
[1743963347687,2.41335034,561.42,559.38,0.29829961]
[1743963347890,0.32804527,561.41,559.38,0.29829961]
[1743963348188,1.70771966,561.41,559.38,0.29829961]
[1743963348490,0.96404527,561.4,559.38,0.29829961]
[1743963348683,1.59175816,561.39,559.39,0.29833769]
[1743963348888,0.32808377,561.38,559.4,0.29833769]
[1743963349082,0.32808377,561.37,559.38,0.29833769]
[1743963349291,2.41338884,561.37,559.39,0.29833769]
[1743963349488,0.32808377,561.36,559.4,0.29833769]
[1743963349689,1.59175816,561.36,559.4,0.29833769]
[1743963349894,0.32808377,561.35,559.41,0.29833769]
[1743963350091,2.08530507,561.35,559.38,0.3104565]
[1743963350392,0.32798698,561.34,559.39,0.29824203]
[1743963350691,1.59166137,561.34,559.39,0.29824203]
[1743963350892,0.32798698,561.33,559.39,0.29824203]
[1743963351090,3.67696644,561.33,559.39,0.29824203]
[1743963351287,1.814108,561.32,559.39,0.29824203]
[1743963351492,0.32798698,561.31,559.39,0.29824203]
[1743963351990,0.32798698,561.32,559.39,0.29824203]
[1743963352291,0.32798698,561.31,559.39,0.29824203]
[1743963352494,0.32798698,561.3,559.39,0.29824203]
[1743963352690,0.32798698,561.32,559.39,0.29824203]
[1743963352891,0.32798698,561.31,559.39,0.29824203]
[1743963353087,1.59166137,561.32,559.39,0.29824203]
[1743963353291,0.32798698,561.31,559.39,0.29824203]
[1743963353586,0.32798698,561.31,559.38,0.3104565]
[1743963353587,0.32798698,561.3,559.4,0.29824203]
[1743963353792,2.41011076,561.3,559.41,0.29824203]
[1743963353995,0.32798698,561.29,559.42,0.29824203]
[1743963354192,1.59166137,561.29,559.43,0.29824203]
[1743963354392,0.32798698,561.28,559.44,0.29824203]
[1743963354594,3.67378515,561.28,559.45,0.29824203]
[1743963354790,3.67378515,561.28,559.38,0.3104565]
[1743963354791,2.41011076,561.27,559.39,0.29824203]
[1743963354995,0.32798698,561.26,559.4,0.29824203]
[1743963355191,0.32796893,561.25,559.41,0.29822461]
[1743963355496,0.32796893,561.25,559.42,0.29822461]
[1743963355796,2.41009271,561.25,559.39,0.29822461]
[1743963356096,1.59164332,561.24,559.4,0.29822461]
[1743963356295,0.32796893,561.23,559.39,0.29822461]
[1743963356495,3.6737671,561.23,559.4,0.29822461]
[1743963356795,2.41009271,561.22,559.41,0.29822461]
[1743963356996,0.32796893,561.21,559.39,0.29822461]
[1743963357195,0.32796893,561.21,559.4,0.29822461]
[1743963357396,1.59164332,561.21,559.39,0.29822461]
[1743963357597,0.32796893,561.2,559.4,0.29822461]
[1743963357793,2.41009271,561.2,559.39,0.29822461]
[1743963357995,0.32796893,561.19,559.39,0.29822461]
[1743963358192,1.59164332,561.19,559.39,0.29822461]
[1743963358496,0.32796893,561.18,559.39,0.29822461]
[1743963358695,2.41009271,561.18,559.39,0.29822461]
[1743963358896,0.32796893,561.17,559.39,0.29822461]
[1743963359095,1.59164332,561.17,559.39,0.29822461]
[1743963359396,0.32796893,561.16,559.39,0.29822461]
[1743963359698,2.72061431,561.16,559.39,0.29822461]
[1743963359892,2.407813,561.15,559.39,0.29822461]
[1743963360097,0.32796893,561.14,559.39,0.29822461]
[1743963360298,2.407813,561.14,559.39,0.29822461]
[1743963360594,1.59164332,561.13,559.39,0.29822461]
[1743963360798,1.59164332,561.12,559.39,0.29822461]
[1743963360998,0.32796893,561.11,559.39,0.29822461]
[1743963361198,3.67148739,561.11,559.39,0.29822461]
[1743963361399,3.073813,561.1,559.39,0.29822461]
[1743963361596,3.67110549,561.09,559.39,0.29822461]
[1743963361793,2.07946217,561.08,559.39,0.29822461]
[1743963361995,1.59164332,561.07,559.39,0.29822461]
[1743963362199,0.32796893,561.06,559.39,0.29822461]
[1743963362398,3.67110549,561.06,559.39,0.29822461]
[1743963362694,2.4074311,561.05,559.39,0.29822461]
[1743963362900,1.59164332,561.04,559.39,0.29822461]
[1743963363198,0.32796893,561.03,559.39,0.29822461]
[1743963363399,2.4074311,561.03,559.39,0.29822461]
[1743963363700,1.59164332,561.02,559.39,0.29822461]
[1743963363901,0.32796893,561.01,559.38,0.29822461]
[1743963364196,3.67110549,561.01,559.39,0.29822461]
[1743963364403,3.34313656,561.0,559.38,0.31050774]
[1743963364594,2.40746545,560.99,559.39,0.29825805]
[1743963364799,0.32800328,560.98,559.39,0.29825805]
[1743963365401,1.26367439,560.98,559.39,0.29825805]
[1743963365601,3.34313656,560.98,559.39,0.29825805]
[1743963365900,3.34313656,560.97,559.39,0.29825805]
[1743963366100,2.07946217,560.96,559.39,0.29825805]
[1743963366302,1.26367439,560.95,559.39,0.29825805]
[1743963366502,2.74551818,560.95,559.4,0.29823285]
[1743963366703,1.48471312,560.94,559.41,0.29823285]
[1743963366896,0.31050913,560.94,559.42,0.29823285]
[1743963367101,0.31050913,560.94,559.4,0.29823285]
[1743963367298,0.31050913,560.94,559.41,0.29823285]
[1743963367498,0.31050913,560.94,559.4,0.29823285]
[1743963367805,0.906,560.94,559.41,0.29823285]
[1743963368005,0.906,560.94,559.39,0.31050913]
[1743963368304,0.906,560.94,559.4,0.2981764]
[1743963368704,0.906,560.94,559.41,0.2981764]
[1743963369105,1.364,560.94,559.42,0.2981764]
[1743963369305,1.364,560.94,559.39,0.31050913]
[1743963369306,1.364,560.94,559.43,0.2981764]
[1743963369501,1.364,560.94,559.39,0.31050913]
[1743963369700,1.364,560.94,559.4,0.29809767]
[1743963370004,1.364,560.94,559.41,0.29809767]
[1743963370199,1.364,560.94,559.42,0.29809767]
[1743963370405,1.364,560.94,559.43,0.2980835]
[1743963370704,1.364,560.94,559.44,0.2980835]
[1743963371000,1.48,560.94,559.45,0.2980835]
[1743963371205,1.48,560.94,559.4,0.2980835]
[1743963371406,1.48,560.94,559.41,0.29806901]
[1743963371607,1.48,560.94,559.42,0.29806901]
[1743963371802,1.48,560.94,559.43,0.29806901]
[1743963372005,1.48,560.94,559.44,0.29806901]
[1743963372208,1.48,560.94,559.45,0.29806901]
[1743963372403,1.48,560.94,559.46,0.29806901]
[1743963372611,1.48,560.94,559.47,0.29806901]
[1743963372809,1.48,560.94,559.37,0.35754509]
[1743963373008,1.48,560.94,559.42,0.31041773]
[1743963373206,1.48,560.94,559.43,0.29803792]
[1743963373405,1.48,560.94,559.44,0.29803792]
[1743963373708,1.48,560.94,559.45,0.29803792]
[1743963373908,1.48,560.94,559.46,0.29803792]
[1743963374111,1.48,560.94,559.47,0.29803792]
[1743963374310,1.48,560.94,559.48,0.29803792]
[1743963374504,1.48,560.94,559.49,0.29800635]
[1743963374812,1.48,560.94,559.5,0.29800635]
[1743963375110,2.14,560.94,559.51,0.29800635]
[1743963375410,2.14,560.94,559.52,0.29800635]
[1743963375611,2.14,560.94,559.53,0.29800635]
[1743963375905,2.14,560.94,559.54,0.29800635]
[1743963376103,2.891,560.94,559.55,0.29800635]
[1743963376305,2.891,560.94,559.56,0.2979128]
[1743963376611,2.891,560.94,559.57,0.2979128]
[1743963376910,2.891,560.94,559.58,0.2979128]
[1743963377111,2.891,560.94,559.49,0.2979128]
[1743963377312,2.891,560.94,559.5,0.2979128]
[1743963377512,2.891,560.94,559.51,0.2979128]
[1743963377712,2.891,560.94,559.42,0.31041773]
[1743963377713,2.891,560.94,559.49,0.2979128]
[1743963377914,2.891,560.94,559.5,0.29799238]
[1743963378218,2.891,560.94,559.51,0.29799238]
[1743963378417,2.891,560.94,559.52,0.29799238]
[1743963378613,2.891,560.94,559.53,0.29799238]
[1743963378815,3.679,560.94,559.54,0.29799238]
[1743963379017,3.679,560.94,559.55,0.29799238]
[1743963379315,3.679,560.94,559.56,0.29799238]
[1743963379514,3.679,560.94,559.57,0.29799238]
[1743963379719,3.679,560.94,559.58,0.29799238]
[1743963379918,3.679,560.94,559.59,0.29799238]
[1743963380118,3.679,560.94,559.44,1.32189964]
[1743963380318,3.679,560.94,559.45,0.29802494]
[1743963380515,3.679,560.94,559.46,0.29802494]
[1743963380721,3.679,560.94,559.47,0.29802494]
[1743963380920,3.679,560.94,559.48,0.29802494]
[1743963381116,3.679,560.94,559.49,0.29802494]
[1743963381321,3.679,560.94,559.5,0.29802494]
[1743963381521,3.679,560.94,559.51,0.29802494]
[1743963381729,3.679,560.94,559.52,0.29802494]
[1743963382021,3.679,560.94,559.53,0.29802494]
[1743963382221,3.679,560.94,559.54,0.29802494]
[1743963382522,3.679,560.94,559.44,1.32189964]
[1743963382523,3.679,560.94,559.55,0.29802494]
[1743963382721,3.679,560.94,559.38,0.29802494]
[1743963382916,3.679,560.94,559.39,0.29802494]
[1743963383115,3.679,560.94,559.4,0.29802494]
[1743963383316,3.679,560.94,559.41,0.29802494]
[1743963383521,3.679,560.94,559.42,0.29802494]
[1743963383715,1.27686182,560.93,559.43,0.29802494]
[1743963383914,1.58737372,560.93,559.44,0.29802494]
[1743963384120,3.69142086,560.93,559.45,0.29802494]
[1743963384321,2.10417655,560.92,559.37,0.35754509]
[1743963384523,2.43215721,560.92,559.46,0.2982362]
[1743963384834,1.60484248,560.91,559.46,0.2982362]
[1743963385018,3.70901903,560.91,559.46,0.2982362]
[1743963385218,3.70901903,560.9,559.47,0.2982362]
[1743963385422,2.43215721,560.89,559.41,0.2982362]
[1743963385718,1.60484248,560.88,559.41,0.2982362]
[1743963385918,0.32798066,560.87,559.42,0.31055346]
[1743963386118,3.38103837,560.87,559.42,0.31055346]
[1743963386322,2.10417655,560.86,559.43,0.29829191]
[1743963386523,1.27686182,560.85,559.43,0.29829191]
[1743963386723,3.38154833,560.85,559.43,0.29829191]
[1743963386924,2.10468651,560.84,559.43,0.29829191]
[1743963387224,1.27686182,560.83,559.43,0.29829191]
[1743963387530,2.77625489,560.83,559.44,0.29829191]
[1743963387732,1.27686182,560.83,559.42,0.31055346]
[1743963388021,1.27686182,560.93,559.43,0.29810652]
[1743963388226,3.221,560.94,559.44,0.29810652]
[1743963388522,3.221,560.94,559.45,0.29810652]
[1743963388728,3.221,560.94,559.46,0.29810652]
[1743963388921,3.221,560.94,559.47,0.29810652]
[1743963389126,3.221,560.94,559.48,0.29810652]
[1743963389327,3.819,560.94,559.42,0.31055346]
[1743963389535,3.819,560.94,559.49,0.29800368]
[1743963389724,3.819,560.94,559.5,0.29800368]
[1743963390022,3.819,560.94,559.51,0.29800368]
[1743963390333,3.819,560.94,559.52,0.29800368]
[1743963390628,3.819,560.94,559.53,0.29800368]
[1743963390828,3.819,560.94,559.54,0.29800368]
[1743963391030,3.819,560.94,559.55,0.29800368]
[1743963391224,3.819,560.94,559.56,0.29800368]
[1743963391429,3.819,560.94,559.57,0.29800368]
[1743963391629,3.819,560.94,559.58,0.29800368]
[1743963391830,3.819,560.94,559.59,0.29800368]
[1743963392030,4.278,560.94,559.6,0.29800368]
[1743963392331,4.278,560.94,559.81,1.32189964]
[1743963392932,4.278,560.94,559.82,0.2979284]
[1743963393232,4.278,560.94,559.83,0.2979284]
[1743963393429,4.278,560.94,559.84,0.2979284]
[1743963393630,4.278,560.94,559.85,0.2979284]
[1743963394033,4.278,560.94,559.86,0.2979284]
[1743963394238,4.278,560.94,559.59,0.31029179]
[1743963394239,4.278,560.94,559.87,0.2979284]
[1743963394436,4.278,560.94,559.88,0.2979284]
[1743963394839,4.278,560.94,559.77,1.32189964]
[1743963394840,4.278,560.94,559.89,0.2979284]
[1743963395037,4.278,560.94,559.78,0.2979284]
[1743963396034,4.278,560.94,559.77,1.32189964]
[1743963396231,4.278,560.94,559.78,0.29796122]
[1743963396928,4.278,560.94,559.79,0.29796122]
[1743963397128,4.278,560.94,559.8,0.29796122]
[1743963397331,4.278,560.94,559.6,0.29796122]
[1743963397528,4.278,560.94,559.61,0.29796122]
[1743963397733,4.278,560.94,559.62,0.29796122]
[1743963398028,4.278,560.94,559.63,0.29796122]
[1743963398229,4.278,560.94,559.64,0.29796122]
[1743963398436,4.278,560.94,559.65,0.29796122]
[1743963398642,4.278,560.94,559.66,0.29796122]
[1743963398840,4.278,560.94,559.67,0.29796122]
[1743963399133,4.278,560.94,559.68,0.29796122]
[1743963399331,4.278,560.94,559.69,0.29773196]
[1743963399527,4.278,560.94,559.79,1.32189964]
[1743963399729,5.018,560.94,559.8,0.29773196]
[1743963399928,5.018,560.94,559.81,0.29773196]
[1743963400132,5.018,560.94,559.82,0.29773196]
[1743963400332,5.018,560.94,559.83,0.29773196]
[1743963400533,5.018,560.94,559.84,0.29773196]
[1743963400733,5.018,560.94,559.85,0.29773196]
[1743963400932,5.018,560.94,559.86,0.29773196]
[1743963401131,5.018,560.94,559.87,0.29773196]
[1743963401335,5.018,560.94,559.88,0.29773196]
[1743963401932,5.018,560.94,559.89,0.29773196]
[1743963402137,5.018,560.94,559.9,0.29773196]
[1743963402438,5.018,560.94,560.01,1.32189964]
[1743963402833,5.018,560.94,560.02,0.29796739]
[1743963404141,5.018,560.94,560.01,1.32189964]
[1743963404340,5.018,560.94,560.02,0.2979101]
[1743963405339,5.018,560.94,559.73,0.2979101]
[1743963405534,5.018,560.94,559.74,0.2979101]
[1743963405840,5.018,560.94,559.75,0.2979101]
[1743963406041,5.018,560.94,559.76,0.29793818]
[1743963406339,5.018,560.94,559.77,0.29793818]
[1743963406540,5.018,560.94,559.78,0.29793818]
[1743963406741,5.018,560.94,559.73,0.29793818]
[1743963406939,5.018,560.94,559.79,0.29793818]
[1743963407141,5.018,560.94,559.8,0.29793818]
[1743963407341,5.018,560.94,559.73,0.29793818]
[1743963407541,5.018,560.94,559.72,1.32189964]
[1743963407742,5.018,560.94,559.71,0.31035821]
[1743963407743,5.018,560.94,559.84,1.32189964]
[1743963408041,5.018,560.94,559.85,0.29795542]
[1743963409536,5.018,560.94,559.73,0.29795542]
[1743963409842,5.018,560.94,559.72,1.32189964]
[1743963410039,5.018,560.94,559.73,0.29799654]
[1743963410545,5.018,560.94,559.74,0.29799654]
[1743963410742,5.018,560.94,559.75,0.29799654]
[1743963410943,5.018,560.94,559.72,1.32189964]
[1743963411444,5.018,560.94,559.73,0.29798386]
[1743963411644,5.018,560.94,559.74,0.29798386]
[1743963411844,5.018,560.94,559.72,1.32189964]
[1743963411845,5.018,560.94,559.75,0.29798386]
[1743963412040,5.018,560.94,559.76,0.29798386]
[1743963412252,5.018,560.94,559.79,1.32189964]
[1743963412441,5.018,560.94,559.8,0.29798386]
[1743963412640,5.018,560.94,559.82,0.35725768]
[1743963412840,5.018,560.94,559.83,0.29798386]
[1743963413048,5.018,560.94,559.84,0.29798386]
[1743963413241,5.018,560.94,559.86,0.35723216]
[1743963413546,5.018,560.94,559.87,0.29798386]
[1743963415150,5.018,560.94,559.88,0.3572194]
[1743963415343,5.018,560.94,559.89,0.29798386]
[1743963415957,5.018,560.94,559.9,0.35720664]
[1743963416246,5.018,560.94,559.91,0.29798386]
[1743963416751,5.018,560.94,559.92,0.29798386]
[1743963416951,5.018,560.94,559.93,0.3571875]
[1743963417152,5.018,560.94,559.94,0.29798386]
[1743963417554,5.018,560.94,559.95,0.35717474]
[1743963417750,5.018,560.94,559.96,0.29799959]
[1743963417954,5.018,560.94,559.97,0.35716199]
[1743963418149,5.018,560.94,559.98,0.29799959]
[1743963418353,5.018,560.94,559.99,0.35714923]
[1743963418555,5.018,560.94,560.0,0.29799959]
[1743963418855,5.018,560.94,560.01,0.35713647]
[1743963419252,5.018,560.94,560.02,0.29796012]
[1743963419458,5.018,560.94,560.03,0.29796012]
[1743963419657,5.018,560.94,560.04,0.29796012]
[1743963420052,5.018,560.94,560.06,0.35710459]
[1743963420255,5.018,560.94,560.07,0.29796012]
[1743963420859,5.018,560.94,560.06,0.35710459]
[1743963421059,5.018,560.94,560.07,0.29798347]
[1743963421761,5.018,560.94,560.08,0.29798347]
[1743963421958,5.018,560.94,560.09,0.29798347]
[1743963422155,5.018,560.94,560.1,0.29798347]
[1743963422459,5.018,560.94,560.11,0.29798347]
[1743963422661,5.018,560.94,560.08,0.29798347]
[1743963422858,5.018,560.94,560.09,0.29798347]
[1743963423054,5.018,560.94,560.08,0.29798347]
[1743963423364,5.018,560.94,560.09,0.29798347]
[1743963423566,5.018,560.94,560.08,0.29798347]
[1743963423759,5.018,560.94,560.07,1.32189964]
[1743963424061,5.018,560.94,560.08,0.29789738]
[1743963424261,5.018,560.94,560.07,0.29789738]
[1743963424459,5.018,560.94,560.06,0.35710459]
[1743963424659,5.018,560.94,560.07,0.29799779]
[1743963425056,5.018,560.94,560.08,0.2978752]
[1743963425255,5.018,560.94,560.09,0.2978752]
[1743963425459,5.018,560.94,560.07,0.2978752]
[1743963426859,5.018,560.94,560.07,1.61977484]
[1743963427059,5.018,560.94,560.07,1.32189964]
[1743963427262,5.018,560.94,560.08,0.29791402]
[1743963428463,5.018,560.94,560.09,0.29791402]
[1743963428660,5.018,560.94,560.07,1.32189964]
[1743963428866,5.018,560.94,560.08,0.29780721]
[1743963429060,5.018,560.94,560.09,0.29780721]
[1743963429263,5.018,560.94,560.1,0.29780721]
[1743963429564,5.018,560.94,560.11,0.29780721]
[1743963429771,5.018,560.94,560.12,0.29780721]
[1743963430066,5.018,560.94,560.13,0.29780721]
[1743963430362,5.018,560.94,560.15,0.35704721]
[1743963430573,5.018,560.94,560.16,0.29780721]
[1743963430865,5.018,560.94,560.17,0.29780721]
[1743963431067,5.018,560.94,560.18,0.29780721]
[1743963431265,5.018,560.94,560.25,1.32189964]
[1743963431462,5.018,560.94,560.26,0.29780721]
[1743963431772,5.018,560.94,560.27,0.29780721]
[1743963431973,5.018,560.94,560.28,0.65477158]
[1743963432172,5.018,560.94,560.29,0.65476521]
[1743963432368,5.018,560.94,560.3,0.29780721]
[1743963432567,5.018,560.94,560.31,0.29780721]
[1743963432766,5.018,560.94,560.32,0.29780721]
[1743963432970,5.018,560.94,560.33,0.29780721]
[1743963433166,5.018,560.94,560.34,0.29780721]
[1743963433373,5.018,560.94,560.35,0.29780721]
[1743963433672,5.018,560.94,560.29,1.67885764]
[1743963433869,5.018,560.94,560.3,0.29768845]
[1743963434073,5.018,560.94,560.31,0.29768845]
[1743963434274,5.018,560.94,560.32,0.29768845]
[1743963434572,5.018,560.94,560.33,0.29768845]
[1743963434773,5.018,560.94,560.34,0.29768845]
[1743963434973,5.018,560.94,560.35,0.29768845]
[1743963435174,5.018,560.94,560.3,0.29768845]
[1743963435475,5.018,560.94,560.31,0.65463371]
[1743963435681,5.018,560.94,560.32,0.29768845]
[1743963435875,5.018,560.94,560.33,0.29768845]
[1743963436071,5.018,560.94,560.34,0.29768845]
[1743963436276,5.018,560.94,560.31,0.35694526]
[1743963436277,5.018,560.94,560.44,1.32189964]
[1743963436476,4.559,560.94,560.45,0.29768845]
[1743963436677,4.559,560.94,560.46,0.35684973]
[1743963436871,3.653,560.94,560.47,0.29768845]
[1743963437077,2.877,560.94,560.48,0.35683699]
[1743963437278,2.877,560.94,560.49,0.29774642]
[1743963437471,2.126,560.94,560.5,0.35682426]
[1743963437670,2.126,560.94,560.51,0.29774642]
[1743963437871,1.338,560.94,560.51,0.29774642]
[1743963438175,1.338,560.94,560.52,0.35681153]
[1743963438371,1.338,560.94,560.53,0.29774642]
[1743963438775,1.338,560.94,560.54,0.29776557]
[1743963438972,1.338,560.94,560.53,0.29776557]
[1743963439173,1.338,560.94,560.54,0.65456437]
[1743963439373,1.338,560.94,560.55,0.29776557]
[1743963439981,1.338,560.94,560.56,0.35678607]
[1743963440181,1.338,560.94,560.57,0.29776557]
[1743963440581,1.338,560.94,560.58,0.29773102]
[1743963440776,1.338,560.94,560.57,0.29773102]
[1743963440974,1.338,560.94,560.56,0.35678607]
[1743963440975,1.338,560.94,560.58,0.29773102]
[1743963441179,1.338,560.94,560.59,0.65449799]
[1743963441378,1.338,560.94,560.6,0.65449163]
[1743963441575,1.338,560.94,560.61,0.29773102]
[1743963442076,1.338,560.94,560.6,0.35676061]
[1743963442281,1.338,560.94,560.61,0.2977412]